Cogmind - Beta 10.2 @@@ ROGUE MODE // 2020.12.27 @ 15:49:51 Player: Perseus Result: Heading to fleet! Performance ------------- Evolutions (9) 4500 Regions Visited (31) 6200 Robots Destroyed (264) 1320 Value Destroyed (13939) 13939 Prototype IDs (97) 1940 Alien Tech Used (9) 1800 Bonus (18169) 18169 TOTAL SCORE: 47868 Bonus ------- High Alert Combat Kills 2314 Follower Combat Kills 3342 Network Hubs Disabled 200 Aligned with FarCom 300 Met Data Miner 300 Met Imprinter 300 Met Warlord at Base 500 MAIN.C Attacked Warlord 500 Warlord Defense Kill 300 Built Enhanced Grunts 300 Used Core Reset Matrix 3000 Met Warlord at Research 2000 Invited to Help at Command 2000 Met Warlord at Command 2000 Win 3000 Friendly Fire -2187 Cogmind --------- Core Integrity 608/1600 Matter 300/300 Energy 94/100 System Corruption 70% Temperature Cool (4) Movement Walking (120) Location To Fleet Rendezvous Parts ------- > --- POWER (3) -------- (None) > --- PROPULSION (6) --- Centrium Leg Centrium Leg > --- UTILITY (9) ------ Medium Storage Unit > --- WEAPON (7) ------- (None) > --- INVENTORY (8) ---- Myomer Leg Heavy Riot Gun Phase Gun Peak State ------------ > --- POWER ------------ Micro Fission Core Light Quantum Reactor Light Quantum Reactor > --- PROPULSION ------- Myomer Leg Myomer Leg Myomer Leg Biometal Leg Centrium Leg Centrium Leg > --- UTILITY ---------- Advanced Heat Sink Advanced Heat Sink Advanced Heat Sink Lightpack 2.0 Advanced Signal Interpreter Terrain Scan Processor Matter Drive > --- WEAPON ----------- Gamma Rifle Dispersion Rifle Enhanced Quantum Rifle Enhanced Nova Cannon Battle Rifle Hardcell Cannon Hardcell Cannon > --- INVENTORY -------- Quantum Reactor Quantum Reactor Light Quantum Reactor Improved Quantum Reactor Myomer Leg Myomer Leg Myomer Leg Centrium Leg Advanced Heat Sink Advanced Heat Sink Long-range Terrain Scanner Recoil Nullifier Cloak of Protection Terrabomb Matter Drive Heavy Laser Phase Gun Heavy Disruptor Cannon Enhanced Nova Cannon Heavy Battle Rifle Advanced Micro-nuke Launcher Advanced Datajack [Rating: 208] Favorites ----------- Power Particle Reactor Engine Reinforced Deuterium Engine Power Core Light Neutrino Core Reactor Particle Reactor Propulsion Flexi-carbon Leg Treads Improved Medium Treads Leg Flexi-carbon Leg Utility Lightpack 2.0 Device Long-range Sensor Array Storage Lightpack 2.0 Processor Advanced Signal Interpreter Hackware Advanced System Shield Protection Centrium Medium Armor Plating Artifact Matter Drive Weapon Gauss Rifle Energy Gun Shock Rifle Energy Cannon Heavy Ion Cannon Ballistic Gun Gauss Rifle Ballistic Cannon Advanced Assault Cannon Launcher Gamma Bomb Array Slashing Weapon Master Tearclaws Piercing Weapon Plasma Lance Special Melee Weapon Datajack Build | -11 -10 -10 -10 -9 -8 -7 -7 -7 -7 -6 -6 -6 -6 -6 -5 -5 -5 -5 -5 -5 -4 -4 -4 -4 -3 -3 -3 -3 -2 -1 -1 ------- Run | Scr Mat Min Exi Min Mat Fac Low Low Dat Pro Fac Low Low Zio Pro Fac Ext Cet Arc Hub Fac Upp Upp War Pro Res Qua Sec Res Acc Com Slots Evolved 18 | . . . . . 4 2 . . . . 2 . . . . 2 . . . . 2 . . . . 2 . . 2 2 . Power 2 | . . . . . . . . . . . 1 . . . . . . . . . . . . . . 1 . . . . . Propulsion 4 | . . . . . 1 . . . . . . . . . . 1 . . . . 1 . . . . . . . 1 . . Utility 7 | . . . . . 2 1 . . . . 1 . . . . 1 . . . . 1 . . . . . . . . 1 . Weapon 5 | . . . . . 1 1 . . . . . . . . . . . . . . . . . . . 1 . . 1 1 . Parts Attached 619 | 8 3 6 5 . 17 60 10 38 1 12 19 8 12 5 11 7 27 4 3 7 6 6 8 18 6 23 21 109 58 27 74 Power 45 | 1 . 1 . . 1 4 1 2 . . . 2 2 . . 1 2 1 1 1 . . 1 1 . 2 1 7 5 2 6 Engine 15 | 1 . 1 . . 1 2 1 1 . . . 2 2 . . 1 2 1 . . . . . . . . . . . . . Core 5 | . . . . . . 2 . 1 . . . . . . . . . . . 1 . . . . . . . . . . 1 Reactor 25 | . . . . . . . . . . . . . . . . . . . 1 . . . 1 1 . 2 1 7 5 2 5 Propulsion 77 | 2 3 . . . 4 7 2 2 . . 2 1 2 1 2 1 4 1 . 1 . . 1 3 . 1 2 9 13 . 13 Treads 3 | . . . . . . . 1 . . . . . 1 . . . . . . . . . . . . . . . 1 . . Leg 74 | 2 3 . . . 4 7 1 2 . . 2 1 1 1 2 1 4 1 . 1 . . 1 3 . 1 2 9 12 . 13 Wheel . | . . . . . . . . . . . . . . . . . . . . . . . . . . . . . . . . Hover . | . . . . . . . . . . . . . . . . . . . . . . . . . . . . . . . . Flight . | . . . . . . . . . . . . . . . . . . . . . . . . . . . . . . . . Utility 331 | 3 . . 3 . 4 33 5 23 . 8 14 5 8 . 6 3 14 1 2 5 2 6 6 10 4 15 18 69 19 16 29 Device 268 | 2 . . . . 4 25 4 17 . 6 11 3 6 . 4 2 10 . 2 5 2 6 6 9 4 15 14 62 17 12 20 Storage 13 | 1 . . 3 . . 1 1 1 . . . 1 1 . . . . . . . . . . . . . . . 1 1 2 Processor 13 | . . . . . . 6 . 1 . . 1 . . . . . . . . . . . . 1 . . 1 1 1 . 1 Hackware 1 | . . . . . . . . . . . . . . . . . . . . . . . . . . . . . . . 1 Protection 31 | . . . . . . 1 . 4 . 2 2 1 1 . 2 1 4 1 . . . . . . . . 2 6 . 2 2 Artifact 5 | . . . . . . . . . . . . . . . . . . . . . . . . . . . 1 . . 1 3 Weapon 166 | 2 . 5 2 . 8 16 2 11 1 4 3 . . 4 3 2 7 1 . . 4 . . 4 2 5 . 24 21 9 26 Energy Gun 52 | 1 . 1 . . 2 5 1 6 . . . . . . . 2 1 . . . . . . 2 . 1 . 10 8 6 6 Energy Cannon 21 | . . . . . . 3 . . . . 2 . . . 1 . . . . . 1 . . . . 2 . 5 1 1 5 Ballistic Gun 41 | 1 . 2 1 . 3 5 1 . . . . . . 2 1 . 3 1 . . 1 . . 1 . 2 . 4 7 1 5 Ballistic Cannon 25 | . . . . . 1 2 . 2 1 2 1 . . 1 . . 2 . . . 1 . . . 2 . . 3 1 . 6 Launcher 18 | . . . . . 2 1 . 1 . 1 . . . . 1 . 1 . . . 1 . . 1 . . . 2 3 1 3 Special Weapon . | . . . . . . . . . . . . . . . . . . . . . . . . . . . . . . . . Impact Weapon . | . . . . . . . . . . . . . . . . . . . . . . . . . . . . . . . . Slashing Weapon 1 | . . . . . . . . 1 . . . . . . . . . . . . . . . . . . . . . . . Piercing Weapon 1 | . . . . . . . . . . . . . . . . . . . . . . . . . . . . . 1 . . Special Melee Weapon 7 | . . 2 1 . . . . 1 . 1 . . . 1 . . . . . . . . . . . . . . . . 1 Unidentified Prototypes 27 | . . . . . 1 4 . . . . . . . . . 1 . 2 . . 1 . . 5 . 1 1 5 6 . . Parts Lost 127 | . . . . . 1 9 . . . . 1 . . . . . 1 . . 1 . . . . . 1 . 27 17 12 57 Power 15 | . . . . . . 1 . . . . . . . . . . . . . . . . . . . . . 5 2 2 5 Propulsion 27 | . . . . . . 2 . . . . . . . . . . 1 . . . . . . . . . . 6 5 . 13 Utility 24 | . . . . . . 2 . . . . . . . . . . . . . . . . . . . . . 3 1 2 16 Weapon 61 | . . . . . 1 4 . . . . 1 . . . . . . . . 1 . . . . . 1 . 13 9 8 23 Highest Loss Streak 18 | . . . . . 1 4 . . . . 1 . . . . . 1 . . 1 . . . . . 1 . 9 6 4 18 Average Slot Usage (%) 91 | . 100 100 90 100 99 93 90 91 92 92 85 91 87 92 93 92 93 93 94 93 88 89 92 93 94 93 90 89 88 90 82 Engine 5 | . 14 14 14 14 9 1 6 6 7 7 6 11 9 13 13 11 11 11 8 3 . . . . . . . . . . . Reactor 3 | . . . . . . . . . . . . . . . . . . . 2 5 5 5 7 10 10 13 14 12 12 11 10 Leg 22 | . 28 28 28 28 27 22 21 23 23 23 20 20 14 16 20 22 23 23 23 23 21 21 24 26 26 23 23 20 21 24 20 Device 13 | . 14 14 3 . 17 12 14 12 15 13 10 12 12 13 12 13 11 11 11 11 14 15 15 14 15 14 12 16 16 16 13 Storage 6 | . 14 14 15 28 18 9 6 6 7 7 6 5 5 6 6 5 5 5 5 5 5 5 5 5 5 4 4 4 3 4 3 Processor 8 | . . . . . . 8 7 7 7 7 12 13 13 13 13 11 11 11 11 11 10 10 10 10 10 9 7 6 8 8 7 Protection 1 | . . . . . . . . 2 . . 2 . . . . 1 4 4 5 5 5 5 5 5 5 4 3 3 . 2 2 Energy Gun 7 | . 14 14 14 14 8 11 15 14 15 15 2 . . . . 6 6 5 5 4 . . . . . . . 5 8 10 7 Energy Cannon 4 | . . . . . . 4 . . . . 9 13 13 13 12 8 1 . . . 5 5 5 5 5 7 9 4 2 3 4 Ballistic Gun 6 | . 14 11 1 14 12 5 6 7 7 7 6 6 6 7 13 5 7 5 5 5 4 5 5 4 5 7 9 6 9 8 4 Ballistic Cannon 5 | . . . . . 4 6 7 6 2 6 6 6 6 . . . 4 11 11 11 9 10 10 9 9 5 4 4 2 . 4 Naked Turns . | . . . . . . . . . . . . . . . . . . . . . . . . . . . . . . . . Heaviest Build 179 | 14 14 14 41 41 52 60 41 49 41 44 51 54 56 56 54 57 64 62 72 72 76 76 80 105 107 126 179 128 125 125 121 Greatest Support 166 | 20 26 26 26 26 36 60 55 55 50 50 53 56 56 53 60 80 80 80 80 88 88 88 116 121 121 129 134 136 166 164 164 Greatest Overweight (x) 2 | . . . 1 1 2 1 1 . . . 1 1 2 1 1 . . . . . . . . . . . 1 1 1 . 1 Average Overweight (x) . | . . . . 1 1 . . . . . . . . . . . . . . . . . . . . . . . . . . Largest Inventory Capacity 36 | 6 6 6 24 16 16 36 24 24 24 24 24 24 24 24 24 24 24 24 24 24 24 24 24 24 24 24 24 24 24 24 24 Average Capacity 22 | 4 6 6 18 16 16 21 23 23 24 24 24 23 23 24 24 24 24 24 24 24 24 24 24 24 24 24 24 24 23 23 21 Most Carried 24 | 6 6 6 21 16 16 24 24 24 24 24 24 24 24 24 24 24 24 24 24 24 24 24 24 24 24 24 24 24 24 24 24 Average Carried 22 | 2 5 5 13 16 15 20 22 23 24 23 23 23 22 23 23 23 23 23 24 24 22 23 23 23 24 23 23 21 22 21 19 Final Capacity 24 | 6 6 6 16 16 16 24 24 24 24 24 24 24 24 24 24 24 24 24 24 24 24 24 24 24 24 24 24 24 24 24 8 Final Carried 24 | 6 6 6 16 16 16 24 24 24 24 24 24 24 24 24 24 24 24 24 24 24 23 24 24 24 24 24 16 24 22 22 3 Class Distribution -------------------- 40% | Scavenger-Mutant 16% | Hauler-Mutant 16% | Scavenger-Skirmisher 5% | Mutant 4% | Scavenger-Executioner 4% | Scavenger-Tank 3% | Hauler-Skirmisher Dominant Class ---------------- Mutant | -10/Materials Mutant | -10/Mines Hauler-Mutant | -10/Exiles Mutant | -9/Mines Skirmisher | -8/Materials Hauler-Mutant | -7/Factory Scavenger-Mutant | -7/Lower Caves Scavenger-Mutant | -7/Lower Caves Scavenger-Mutant | -7/Data Miner Scavenger-Mutant | -6/Proximity Caves Hauler-Skirmisher | -6/Factory Hauler-Mutant | -6/Lower Caves Hauler-Mutant | -6/Lower Caves Hauler-Assassin | -6/Zion Scavenger-Skirmisher | -5/Proximity Caves Scavenger-Skirmisher | -5/Factory Scavenger-Tank | -5/Extension Scavenger-Tank | -5/Cetus Scavenger-Tank | -5/Archives Scavenger-Skirmisher | -5/Hub_04(d) Scavenger-Skirmisher | -4/Factory Scavenger-Mutant | -4/Upper Caves Scavenger-Mutant | -4/Upper Caves Scavenger-Mutant | -4/Warlord Scavenger-Mutant | -3/Proximity Caves Scavenger-Mutant | -3/Research Scavenger-Mutant | -3/Quarantine Scavenger-Tank | -3/Section 7 Scavenger-Executioner | -2/Research Scavenger-Executioner | -1/Access Scavenger-Mutant | -1/Command Resources | -11 -10 -10 -10 -9 -8 -7 -7 -7 -7 -6 -6 -6 -6 -6 -5 -5 -5 -5 -5 -5 -4 -4 -4 -4 -3 -3 -3 -3 -2 -1 -1 ----------- Run | Scr Mat Min Exi Min Mat Fac Low Low Dat Pro Fac Low Low Zio Pro Fac Ext Cet Arc Hub Fac Upp Upp War Pro Res Qua Sec Res Acc Com Matter Collected 14558 | 298 101 108 140 16 365 1294 272 999 . 398 190 265 210 31 225 106 880 166 74 249 . 305 152 351 195 357 433 3009 1271 488 1610 Remotely . | . . . . . . . . . . . . . . . . . . . . . . . . . . . . . . . . Salvage Created 15020 | 163 254 96 . 56 402 1720 43 518 . 239 202 70 142 . 328 106 824 211 93 227 . 336 472 213 108 427 435 4158 447 535 2195 Parts 646 | 15 10 3 . 4 23 90 1 16 . 8 12 4 7 . 17 9 36 6 4 8 . 5 10 12 3 29 13 179 16 33 73 Haulers Intercepted 3 | . . . . . . 1 . . . . . . . . . . . . . . . . . . . . . . 2 . . Recyclers Shooed 6 | . . . . . . . 1 1 . . 1 . . . . . . . . . . . . . . . . 2 . . 1 Parts Field Recycled . | . . . . . . . . . . . . . . . . . . . . . . . . . . . . . . . . Retrieved Matter . | . . . . . . . . . . . . . . . . . . . . . . . . . . . . . . . . Parts Self-Destructed 120 | . . . . . . . 3 12 . 8 . . 7 2 10 . . . . . . 2 3 70 3 . . . . . . Prevented 55 | . . . . . . . . 17 . . . . 9 . 15 . . . . . . . 5 9 . . . . . . . Kills | -11 -10 -10 -10 -9 -8 -7 -7 -7 -7 -6 -6 -6 -6 -6 -5 -5 -5 -5 -5 -5 -4 -4 -4 -4 -3 -3 -3 -3 -2 -1 -1 ------- Run | Scr Mat Min Exi Min Mat Fac Low Low Dat Pro Fac Low Low Zio Pro Fac Ext Cet Arc Hub Fac Upp Upp War Pro Res Qua Sec Res Acc Com Combat Hostiles Destroyed 190 | . 4 2 . . 10 25 . 7 . 7 3 1 1 . 5 1 12 3 1 3 . 1 2 2 2 5 4 54 4 7 24 Guns 105 | . 4 2 . . 2 17 . 7 . 4 1 . 1 . . . 8 2 . 2 . . 2 . . 2 2 32 3 6 8 Cannons 59 | . . . . . 1 5 . . . . 2 1 . . 3 1 3 1 1 1 . 1 . . 2 3 2 19 . 1 12 AOE 22 | . . . . . 7 2 . . . 3 . . . . 1 . 1 . . . . . . 2 . . . 1 1 . 4 Classes Destroyed 23 | 2 1 . . 1 5 4 . 3 . 1 . . . . 1 . 1 . . . . . . . . . . 3 1 . . Worker 16 | . . . . 1 1 5 . . . . . . . . . 1 . . . . . . . . . . . . 1 . 7 Builder 9 | . . . . . 1 1 . . . . . . . . . . 1 . . . . . . . . 2 1 3 . . . Tunneler 6 | 5 . . . . . 1 . . . . . . . . . . . . . . . . . . . . . . . . . Hauler 3 | . . . . . . 1 . . . . . . . . . . . . . . . . . . . . . . 2 . . Recycler 12 | 1 1 . . . 1 3 . . . . . . . . . . . . . . . . . . . . 1 1 . . 4 Minesweeper 3 | . . . . . . . . 1 . . . . 1 . . . . . . . . . 1 . . . . . . . . Mechanic 2 | . . . . . . 2 . . . . . . . . . . . . . . . . . . . . . . . . . Operator 5 | . . . . . . . . . . . . . . . . . 2 . . 1 . . . . . . . . 1 1 . Watcher 9 | . . . . . 1 3 . . . . . . . . . 1 1 . . 1 . . . . . 1 . 1 . . . Swarmer 14 | . . . . . 3 . . . . 5 . . . . 1 . . . . 1 . . . . . . . 1 . . 3 Saboteur 1 | . . . . . . . . . . . . . . . . . . . . . . . . . . . . 1 . . . Grunt 70 | . 4 2 . . 5 11 . 3 . 2 1 . . . 2 . 8 3 . 1 . . 1 . . . 4 14 . . 9 Brawler 9 | . . . . . 1 2 . . . . . . . . . . 1 . . . . . . . . . . 3 . . 2 Duelist 5 | . . . . . . . . 1 . . . . . . . . . . . . . . . . . . . 4 . . . Researcher 2 | . . . . . . . . . . . . . . . . . . . . . . . . . . . . 2 . . . Sentry 30 | . . . . . 1 4 . 2 . . 1 . . . . . 3 . 1 . . . . . . 3 . 11 1 1 2 Hunter 14 | . . . . . . 3 . . . . . . . . 2 . . . . 1 . . 1 . 2 . . 2 1 . 2 Programmer 39 | . . . . . . 5 . . . . 1 . . . . 1 . . . . . 1 . 2 . 2 . 15 . 6 6 S7 Guard 1 | . . . . . . . . . . . . . . . . . . . . . . . . . . . . 1 . . . Striker 2 | . . . . . . . . . . . . . . . . . . . . . . . . . . . . . 2 . . Executioner 2 | . . . . . . . . . . . . . . . . . . . . . . . . . . . . 2 . . . Decomposer 4 | . . . . . . . 2 . . . . 2 . . . . . . . . . . . . . . . . . . . Packrat 6 | . . . . . . . . 2 . . . . . . . . . . . . . 3 1 . . . . . . . . Samaritan 6 | . . . . . . . . . . 1 . . 2 . . . . . . . . 1 2 . . . . . . . . Master Thief 3 | . . . . . . . . 1 . . . 1 1 . . . . . . . . . . . . . . . . . . Thug 2 | . . . . . . . . . . . . . . . . . 1 . . . . . . 1 . . . . . . . Butcher 1 | . . . . . . . . . . . . . . . . . . 1 . . . . . . . . . . . . . Bouncer 1 | . . . . . . . . . . . . . . . . . . . . . . . . 1 . . . . . . . Guerrilla 2 | . . . . . . . . . . . . . . . . . . . . 1 . . . . . . . . . . 1 Fireman 1 | . . . . . . . . . . . . . . . 1 . . . . . . . . . . . . . . . . Best Kill Streak 9 | 4 2 2 . 1 8 6 . 2 . 4 1 1 1 . 2 1 3 3 1 2 . 2 1 2 2 3 4 9 2 3 5 Combat Bots Only 9 | . 2 2 . . 7 4 . 2 . 4 1 1 1 . 2 1 3 3 1 1 . 1 1 2 2 2 4 9 1 3 4 Max Kills in Single Turn 6 | 1 1 1 . 1 3 6 1 1 . 2 1 1 1 . 1 1 2 2 1 1 . 1 1 2 1 2 2 2 2 1 3 Gunslinging . | . . . . . . . . . . . . . . . . . . . . . . . . . . . . . . . . Exploded 3 | . . . . . 3 1 . . . 2 . . . . 1 . 1 . . . . . . 1 . . . 1 1 . 2 Melee . | . . . . . . . . . . . . . . . . . . . . . . . . . . . . . . . . Uniques/NPCs Destroyed . | . . . . . . . . . . . . . . . . . . . . . . . . . . . . . . . . Combat | -11 -10 -10 -10 -9 -8 -7 -7 -7 -7 -6 -6 -6 -6 -6 -5 -5 -5 -5 -5 -5 -4 -4 -4 -4 -3 -3 -3 -3 -2 -1 -1 -------- Run | Scr Mat Min Exi Min Mat Fac Low Low Dat Pro Fac Low Low Zio Pro Fac Ext Cet Arc Hub Fac Upp Upp War Pro Res Qua Sec Res Acc Com Damage Taken 26930 | . 271 84 . . 255 2040 39 73 . 263 130 6 102 . 340 104 776 66 65 285 . 11 12 221 188 394 113 7004 2864 1601 9623 Core 2250 | . 103 10 . . 38 197 . . . 34 . . 6 . 33 20 68 . 25 11 . . . 27 . 37 16 500 133 181 811 Absorbed by Shields 5963 | . . . . . . . . . . . . . . . . 57 182 64 62 216 . 11 11 172 199 409 101 3016 1463 . . Core Remaining (%) 75 | 100 . . . 54 93 . . . . 67 . . . . 95 . . . . 87 . . . . 97 . . 46 74 . 38 Volleys Fired 1138 | 6 38 5 . 3 27 135 11 105 . 50 24 7 25 . 12 20 55 7 3 21 . 17 34 9 19 76 30 193 54 37 115 Largest 7 | 2 2 2 . 2 3 4 4 4 . 4 4 4 4 . 4 3 4 4 4 4 . 4 4 4 4 5 5 5 6 7 7 Hottest 538 | 70 70 70 . 70 105 237 203 176 . 186 210 210 210 . 190 174 245 230 230 230 . 239 239 239 239 337 319 368 370 448 538 Shots Fired 2915 | 12 76 10 . 6 61 316 29 154 . 66 43 19 40 . 39 30 178 28 11 69 . 23 46 36 43 127 62 637 192 142 420 Gun 1679 | 12 76 10 . 6 45 171 22 131 . 42 6 4 9 . 18 18 107 14 5 32 . 2 4 9 8 44 16 394 145 118 211 Cannon 1178 | . . . . . 5 145 7 23 . 22 37 15 31 . 18 12 68 14 6 37 . 21 42 24 35 83 46 230 39 24 194 Launcher 58 | . . . . . 11 . . . . 2 . . . . 3 . 3 . . . . . . 3 . . . 13 8 . 15 Special . | . . . . . . . . . . . . . . . . . . . . . . . . . . . . . . . . Kinetic 1459 | 6 38 5 . 3 31 174 7 114 . 49 27 8 18 . 18 12 100 21 9 53 . 6 12 24 24 60 22 317 112 61 128 Thermal 927 | 6 38 5 . 3 19 61 . . . . 8 4 11 . 9 13 69 7 2 16 . 17 34 9 19 58 30 168 29 63 229 Explosive 46 | . . . . . 11 . . . . 2 . . . . . . 3 . . . . . . 3 . . . 8 7 . 12 Electromagnetic 474 | . . . . . . 81 22 40 . 15 8 7 11 . 12 5 6 . . . . . . . . 3 10 144 44 18 48 Entropic 9 | . . . . . . . . . . . . . . . . . . . . . . . . . . 6 . . . . 3 Robot Hit Streak 18 | 10 11 6 . 4 5 18 5 11 . 5 9 5 6 . 3 2 13 8 5 5 . 8 4 5 2 9 6 18 13 10 12 Robot Miss Streak 19 | . 6 1 . 1 4 6 2 4 . 3 3 3 3 . 5 10 5 3 3 2 . 2 5 3 2 5 6 9 4 6 19 Penetration Max 2 | . . . . . . . . . . . . . . . . . 1 1 . 1 . . . 1 1 1 1 1 . 1 2 Secondary Targets 4 | . . . . . . . . . . . . . . . . . . . . . . . . . . . . 4 . . . Max Gunslinging Chain 1 | . . . . . . . . . . . . . . . . . . . . . . . . . . . . 1 . . . Shots Hit Robots 1585 | 10 45 10 4 3 24 201 17 86 1 19 16 9 20 1 16 5 102 17 7 33 . 14 22 20 16 45 20 399 109 66 228 Core Hits 684 | 7 14 4 . 2 30 107 4 25 . 15 5 4 7 . 14 4 41 7 2 13 . 7 13 20 4 16 10 163 33 18 95 Critical Hits 63 | . 1 . . . . 1 . 1 . . 1 . . . . . 9 3 1 1 . 1 1 5 6 1 1 18 4 1 7 Critical Kills 20 | . . . . . . 1 . . . . . . . . . . 4 1 1 . . . 1 1 1 1 . 7 2 . . Critical Parts Destroyed 32 | . 1 . . . . . . 1 . . 1 . . . . . 4 1 . 1 . 1 . 3 5 . 1 8 2 1 2 Melee Attacks 19 | . . 2 4 . . . . 8 1 1 . . . 1 . . . . . . . . . . . . . . . . 2 Impact . | . . . . . . . . . . . . . . . . . . . . . . . . . . . . . . . . Slashing 8 | . . . . . . . . 8 . . . . . . . . . . . . . . . . . . . . . . . Piercing . | . . . . . . . . . . . . . . . . . . . . . . . . . . . . . . . . Sneak Attacks 18 | . . 2 4 . . . . 7 1 1 . . . 1 . . . . . . . . . . . . . . . . 2 Combat Hostiles . | . . . . . . . . . . . . . . . . . . . . . . . . . . . . . . . . Follow-up Attacks . | . . . . . . . . . . . . . . . . . . . . . . . . . . . . . . . . Damage Inflicted 48379 | 127 568 105 . 53 1382 5510 269 1122 . 564 324 211 600 . 467 240 3411 566 233 916 . 397 763 1619 542 1439 888 12332 3848 1796 8087 Guns 23342 | 127 568 105 . 53 305 2169 167 862 . 269 62 21 149 . 149 103 1758 277 74 465 . 41 103 229 122 528 281 7440 2089 1370 3456 Cannons 17271 | . . . . . 69 1235 56 138 . 87 262 190 371 . 221 137 1342 289 159 438 . 356 660 469 402 911 607 4148 752 411 3561 Explosions 7633 | . . . . . 1008 2095 46 . . 208 . . 80 . 97 . 311 . . 13 . . . 921 18 . . 744 1007 15 1070 Melee 122 | . . . . . . . . 122 . . . . . . . . . . . . . . . . . . . . . . . Ramming 11 | . . . . . . 11 . . . . . . . . . . . . . . . . . . . . . . . . . Kinetic 18574 | 53 268 53 . 15 269 1505 56 572 . 152 119 21 283 . 149 45 1862 422 187 672 . 88 166 608 398 702 381 5678 1919 595 1336 Thermal 16712 | 74 300 52 . 38 105 2577 46 . . . 88 54 . . 108 163 1150 144 46 231 . 309 597 90 144 695 159 3267 318 982 4975 Explosive 5282 | . . . . . 1008 456 . . . 208 . . . . . . 311 . . . . . . 921 . . . 683 909 . 786 Electromagnetic 7504 | . . . . . . 961 167 428 . 204 117 136 317 . 210 32 88 . . 13 . . . . . 42 348 2704 702 219 816 Impact . | . . . . . . . . . . . . . . . . . . . . . . . . . . . . . . . . Slashing 122 | . . . . . . . . 122 . . . . . . . . . . . . . . . . . . . . . . . Piercing . | . . . . . . . . . . . . . . . . . . . . . . . . . . . . . . . . Entropic 174 | . . . . . . . . . . . . . . . . . . . . . . . . . . . . . . . 174 Highest Corruption 70 | . . . . . . 9 6 . . . . . 1 1 . 4 4 . . . . . . . . 3 . 11 3 6 70 Average Corruption 5 | . . . . . . 3 4 . . . . . 1 1 . 3 3 . . . . . . . . 1 . 5 1 3 12 Corruption Purged 47 | . . . . . . 8 6 . . . . . . . . . 4 . . . . . . . . 3 . 16 2 6 2 Effects 278 | . . . . . . 47 26 . . . . . 3 . . 6 1 . . . . . . . . 2 . 66 1 13 113 Message Errors 50 | . . . . . . 11 4 . . . . . 2 . . . . . . . . . . . . 1 . 10 . 1 21 Matter Fused 45 | . . . . . . 9 2 . . . . . . . . 2 . . . . . . . . . . . 9 . 3 20 Heat Flow Errors 27 | . . . . . . 5 6 . . . . . . . . . . . . . . . . . . . . 5 . 3 8 Energy Discharges 26 | . . . . . . 2 4 . . . . . 1 . . . 1 . . . . . . . . 1 . 2 . 2 13 Parts Rejected 3 | . . . . . . . . . . . . . . . . 2 . . . . . . . . . . . 1 . . . Data Loss (minor) 26 | . . . . . . 8 2 . . . . . . . . . . . . . . . . . . . . 4 . . 12 Data Loss (major) 7 | . . . . . . 1 2 . . . . . . . . . . . . . . . . . . . . 1 . . 3 Misfires 5 | . . . . . . 2 1 . . . . . . . . . . . . . . . . . . . . 1 . . 1 Alerts 1 | . . . . . . . . . . . . . . . . . . . . . . . . . . . . . . . 1 Misdirections 16 | . . . . . . . . . . . . . . . . . . . . . . . . . . . . 1 . . 15 Targeting Errors 63 | . . . . . . 7 4 . . . . . . . . 2 . . . . . . . . . . . 28 1 3 18 Weapon Failures 9 | . . . . . . 2 1 . . . . . . . . . . . . . . . . . . . . 4 . 1 1 Overload Shots . | . . . . . . . . . . . . . . . . . . . . . . . . . . . . . . . . Overflow Damage 1763 | . . . . . 9 729 . 20 . 35 . . 26 . . . 75 . . 18 . 39 119 19 20 32 23 99 171 47 282 Projectiles 681 | . . . . . . 97 . . . . . . 26 . . . 30 . . 8 . 39 119 . 20 32 23 35 . 47 205 Explosions 1062 | . . . . . 9 632 . . . 35 . . . . . . 45 . . 10 . . . 19 . . . 64 171 . 77 Melee 20 | . . . . . . . . 20 . . . . . . . . . . . . . . . . . . . . . . . Knockbacks 53 | . . . . . . 11 2 1 . 1 . . . . . . 8 . . 7 . . . 4 2 1 2 11 1 . 2 Impact . | . . . . . . . . . . . . . . . . . . . . . . . . . . . . . . . . Kinetic 48 | . . . . . . 11 2 1 . 1 . . . . . . 8 . . 5 . . . 3 2 1 1 10 1 . 2 Secondary 5 | . . . . . . . . . . . . . . . . . . . . 2 . . . 1 . . 1 1 . . . Self-Inflicted Damage 809 | . . . . . . 359 . . . . . . 30 . . . 42 . . 91 . . . . . . . 35 179 . 73 Shots 18 | . . . . . . 6 . . . . . . 1 . . . 1 . . 1 . . . . . . . 3 3 . 3 Rammed 1 | . . . . . . 1 . . . . . . . . . . . . . . . . . . . . . . . . . Targets Rammed 1 | . . . . . . 1 . . . . . . . . . . . . . . . . . . . . . . . . . Kicked . | . . . . . . . . . . . . . . . . . . . . . . . . . . . . . . . . Crushed . | . . . . . . . . . . . . . . . . . . . . . . . . . . . . . . . . Highest Temperature 401 | 36 198 87 . 9 108 331 284 306 . 387 168 342 401 . 323 342 399 16 16 355 221 15 75 42 103 316 90 312 306 246 384 Average Temperature 86 | 16 52 47 . 6 34 79 112 90 . 137 66 138 128 . 118 104 87 7 9 104 115 10 21 15 34 97 31 72 84 97 126 Received Heat Transfer 2156 | . 156 42 . . 90 369 . 15 . 78 36 . . . 29 . 180 20 8 20 . . 6 9 . 40 21 563 159 36 279 Effects 11 | . . . . . . . . . . . . . 1 . . 2 1 . . . . . . . . 1 . 3 . . 3 Shutdowns 4 | . . . . . . . . . . . . . . . . . 1 . . . . . . . . 1 . . . . 2 Energy Bleed 3 | . . . . . . . . . . . . . . . . 2 . . . . . . . . . . . . . . 1 Interference 4 | . . . . . . . . . . . . . 1 . . . . . . . . . . . . . . 3 . . . Siege Activations . | . . . . . . . . . . . . . . . . . . . . . . . . . . . . . . . . Robots Corrupted 5 | . . . . . . 1 . . . . . . 1 . 1 . . . . . . . . . . . . 2 . . . Combat Hostiles 4 | . . . . . . 1 . . . . . . . . 1 . . . . . . . . . . . . 2 . . . Parts Fried 41 | . . . . . . 2 . 3 . 1 . 2 10 . 1 . . . . . . . . . . . 3 13 2 . 4 Impact Corruptions . | . . . . . . . . . . . . . . . . . . . . . . . . . . . . . . . . Robots Melted . | . . . . . . . . . . . . . . . . . . . . . . . . . . . . . . . . Combat Hostiles . | . . . . . . . . . . . . . . . . . . . . . . . . . . . . . . . . Parts Melted 27 | . 1 1 . . . 2 . . . . . . . . 1 1 3 . . . . . . . . 1 . 6 . 5 6 Heat Transferred 18971 | 222 888 148 . 111 296 2741 50 . . . 111 74 . . 148 185 1683 186 74 370 . 370 740 93 228 522 111 3412 494 1073 4641 Parts Sabotaged 1 | . . . . . . . . . . . . . . . . . . . . . . . . . . . . 1 . . . Parts Stolen 8 | . . . . . . . 3 . . . . 1 4 . . . . . . . . . . . . . . . . . . Parts Stripped . | . . . . . . . . . . . . . . . . . . . . . . . . . . . . . . . . Power Chain Reactions 9 | . . . . . . 4 1 . . . . . 2 . . . . . . . . . . . . . . . 1 . 1 Missiles Intercepted . | . . . . . . . . . . . . . . . . . . . . . . . . . . . . . . . . Alert | -11 -10 -10 -10 -9 -8 -7 -7 -7 -7 -6 -6 -6 -6 -6 -5 -5 -5 -5 -5 -5 -4 -4 -4 -4 -3 -3 -3 -3 -2 -1 -1 ------- Run | Scr Mat Min Exi Min Mat Fac Low Low Dat Pro Fac Low Low Zio Pro Fac Ext Cet Arc Hub Fac Upp Upp War Pro Res Qua Sec Res Acc Com Peak Influence 1940 | 30 195 55 . 10 430 1546 . . . . 188 . . . . 139 950 1040 659 1940 950 . . . . 175 197 1041 593 576 1116 Initial 950 | . 19 5 . . . 154 . . . . 105 . . . . 31 67 501 416 230 950 . . . . 30 13 10 560 182 318 Average 461 | 15 96 36 . 2 176 609 . . . . 105 . . . . 75 382 845 617 1113 950 . . . . 62 51 447 391 474 862 Maximum Alert Level 5 | . . . . . 2 4 . . . . . . . . . . 3 3 2 5 3 . . . . . 1 3 2 2 4 Low Security (%) 35 | 100 100 100 . 100 49 26 . . . . 100 . . . . 100 19 . . . . . . . . 100 99 31 . 4 . Level 1 15 | . . . . . 39 10 . . . . . . . . . . 50 . . 8 . . . . . . . 14 73 4 4 Level 2 19 | . . . . . 10 23 . . . . . . . . . . 12 43 100 8 . . . . . . . 35 26 91 6 Level 3 24 | . . . . . . 25 . . . . . . . . . . 16 56 . 21 100 . . . . . . 19 . . 85 Level 4 4 | . . . . . . 15 . . . . . . . . . . . . . 49 . . . . . . . . . . 3 Level 5 . | . . . . . . . . . . . . . . . . . . . . 12 . . . . . . . . . . . High Security . | . . . . . . . . . . . . . . . . . . . . . . . . . . . . . . . . Max Security . | . . . . . . . . . . . . . . . . . . . . . . . . . . . . . . . . Squads Dispatched 70 | . 1 . . . 3 15 . . . 1 2 . . . . 1 4 . . 4 2 . . . . 2 2 13 1 5 14 Investigation 13 | . . . . . 1 2 . . . 1 . . . . . 1 . . . . . . . . . . 2 1 . 2 3 Extermination 22 | . . . . . . 4 . . . . 2 . . . . . . . . . . . . . . 1 . 6 . 2 7 Reinforcement 22 | . 1 . . . 2 6 . . . . . . . . . . 4 . . 3 . . . . . 1 . 1 1 1 2 Assault 7 | . . . . . . . . . . . . . . . . . . . . 1 2 . . . . . . 2 . . 2 Garrison 6 | . . . . . . 3 . . . . . . . . . . . . . . . . . . . . . 3 . . . Intercept . | . . . . . . . . . . . . . . . . . . . . . . . . . . . . . . . . Construction Impeded 3 | . . . . . . 2 . . . . . . . . . . . . . . . . . . . 1 . . . . . Haulers Reinforced 3 | . . . . . . 2 . . . . . . . . . . . . . 1 . . . . . . . . . . . Stealth | -11 -10 -10 -10 -9 -8 -7 -7 -7 -7 -6 -6 -6 -6 -6 -5 -5 -5 -5 -5 -5 -4 -4 -4 -4 -3 -3 -3 -3 -2 -1 -1 --------- Run | Scr Mat Min Exi Min Mat Fac Low Low Dat Pro Fac Low Low Zio Pro Fac Ext Cet Arc Hub Fac Upp Upp War Pro Res Qua Sec Res Acc Com Distress Signals 31 | . . . . 1 1 3 . . . . . . . . . . 4 1 . 1 . . 1 . . . . 4 5 1 9 Communications Jammed . | . . . . . . . . . . . . . . . . . . . . . . . . . . . . . . . . Distress Signals . | . . . . . . . . . . . . . . . . . . . . . . . . . . . . . . . . Times Spotted 471 | . 6 4 . . 18 56 5 10 . 8 4 2 5 . 13 3 40 13 3 28 . 1 1 29 2 11 5 74 25 14 91 Peak Tracking Total 19 | . 2 2 . . 4 5 3 4 . 4 2 1 5 . 5 2 4 8 2 5 2 1 1 19 3 4 4 9 7 3 8 Tactical Retreats 36 | . . . . . . 7 . 7 . . . . . . 2 . 1 . . 5 . . . . 1 . 1 1 3 1 7 Traps | -11 -10 -10 -10 -9 -8 -7 -7 -7 -7 -6 -6 -6 -6 -6 -5 -5 -5 -5 -5 -5 -4 -4 -4 -4 -3 -3 -3 -3 -2 -1 -1 ------- Run | Scr Mat Min Exi Min Mat Fac Low Low Dat Pro Fac Low Low Zio Pro Fac Ext Cet Arc Hub Fac Upp Upp War Pro Res Qua Sec Res Acc Com Traps Triggered 6 | . . . . . 1 1 . . . . . . . . . 1 . . . . 1 . . . . . 1 . . 1 . Indirectly . | . . . . . . . . . . . . . . . . . . . . . . . . . . . . . . . . Trap Hack Attempts . | . . . . . . . . . . . . . . . . . . . . . . . . . . . . . . . . Triggered . | . . . . . . . . . . . . . . . . . . . . . . . . . . . . . . . . Disarmed . | . . . . . . . . . . . . . . . . . . . . . . . . . . . . . . . . Reprogrammed . | . . . . . . . . . . . . . . . . . . . . . . . . . . . . . . . . Reused 10 | . . . . . . . . 5 . . . . 2 . 1 . . . . . . . 1 1 . . . . . . . Traps Extracted . | . . . . . . . . . . . . . . . . . . . . . . . . . . . . . . . . Installed 16 | . . . . . . . . 6 . 1 . . 2 . 2 . . . . . . . 3 2 . . . . . . . Triggered 28 | . . . . 1 . 2 . 5 . . . . 4 . 1 . . . . . . . 1 13 1 . . . . . . Machines | -11 -10 -10 -10 -9 -8 -7 -7 -7 -7 -6 -6 -6 -6 -6 -5 -5 -5 -5 -5 -5 -4 -4 -4 -4 -3 -3 -3 -3 -2 -1 -1 ---------- Run | Scr Mat Min Exi Min Mat Fac Low Low Dat Pro Fac Low Low Zio Pro Fac Ext Cet Arc Hub Fac Upp Upp War Pro Res Qua Sec Res Acc Com Machines Disabled 107 | . . . . . 3 33 . 1 . 3 4 . . . . 1 8 . 2 16 . . . . 4 2 2 17 3 3 5 Max in Single Turn 10 | . . . . . 2 10 . 1 . 1 1 . . . . 1 2 . . 6 . . . . 4 1 1 1 1 1 2 Garrison Access 4 | . . . . . . 1 . . . . . . . . . . . . . . . . . . . . 1 . . 2 . Phase Generator 1 | . . . . . . . . . . . . . . . . . . . . . . . . . . . . . . . 1 Network Hub 1 | . . . . . . . . . . . . . . . . . . . . 1 . . . . . . . . . . . Machines Sabotaged . | . . . . . . . . . . . . . . . . . . . . . . . . . . . . . . . . Garrisons Compromised . | . . . . . . . . . . . . . . . . . . . . . . . . . . . . . . . . Overloaded Fab Kills . | . . . . . . . . . . . . . . . . . . . . . . . . . . . . . . . . Fab Network Shutdowns 1 | . . . . . . 1 . . . . . . . . . . . . . . . . . . . . . . . . . Hacking | -11 -10 -10 -10 -9 -8 -7 -7 -7 -7 -6 -6 -6 -6 -6 -5 -5 -5 -5 -5 -5 -4 -4 -4 -4 -3 -3 -3 -3 -2 -1 -1 --------- Run | Scr Mat Min Exi Min Mat Fac Low Low Dat Pro Fac Low Low Zio Pro Fac Ext Cet Arc Hub Fac Upp Upp War Pro Res Qua Sec Res Acc Com Machines Accessed 89 | . 3 . 1 . 3 17 1 . 3 1 3 . 1 . . 5 2 1 1 7 1 1 1 2 . 4 5 10 . 7 9 Terminals 61 | . 3 . . . 2 9 . . . 1 2 . 1 . . 4 2 1 . 7 . . 1 . . 3 3 10 . 5 7 Fabricators 3 | . . . . . . 2 . . . . 1 . . . . . . . . . . . . . . . . . . . . Repair Stations 4 | . . . . . . 1 . . . . . . . . . . . . . . 1 . . . . . . . . . 2 Recycling Units 2 | . . . . . . 2 . . . . . . . . . . . . . . . . . . . . . . . . . Scanalyzers 5 | . . . . . 1 1 . . . . . . . . . 1 . . . . . . . . . 1 1 . . . . Garrison Access 5 | . . . . . . 2 . . . . . . . . . . . . . . . . . . . . 1 . . 2 . Total Hacks 270 | . 18 . 1 . 21 51 1 . 19 3 9 . 1 . . 11 4 4 2 17 3 1 1 2 . 18 20 31 . 11 21 Successful 142 | . 11 . 1 . 16 26 1 . 19 3 3 . 1 . . 6 2 . 2 6 1 1 1 2 . 8 14 11 . 2 5 Failed 127 | . 6 . . . 5 25 . . . . 6 . . . . 5 2 4 . 11 2 . . . . 10 6 20 . 9 16 Catastrophic 24 | . 1 . . . 1 . . . . . . . . . . 1 1 1 . 2 . . . . . 3 4 2 . 3 5 Database Lockouts 1 | . 1 . . . . . . . . . . . . . . . . . . . . . . . . . . . . . . Manual 128 | . 14 . 1 . 6 24 . . . . 4 . . . . 5 4 1 . 15 . . . 1 . 8 7 22 . 9 7 Terminals 181 | . 18 . . . 6 27 . . . 3 7 . 1 . . 10 4 4 . 17 . . 1 . . 13 12 31 . 8 19 Fabricators 9 | . . . . . . 7 . . . . 2 . . . . . . . . . . . . . . . . . . . . Repair Stations 7 | . . . . . . 2 . . . . . . . . . . . . . . 3 . . . . . . . . . 2 Recycling Units 7 | . . . . . . 7 . . . . . . . . . . . . . . . . . . . . . . . . . Scanalyzers 32 | . . . . . 15 4 . . . . . . . . . 1 . . . . . . . . . 5 7 . . . . Garrison Access 8 | . . . . . . 4 . . . . . . . . . . . . . . . . . . . . 1 . . 3 . Terminal Hacks 73 | . 7 . 1 . . 9 1 . 19 3 2 . 1 . . 3 1 . 2 3 . 1 1 2 . 4 3 8 . . 2 Record 13 | . . . . . . . . . 6 3 . . 1 . . . . . 2 . . . 1 . . . . . . . . Part Schematic 7 | . . . . . . 2 . . 5 . . . . . . . . . . . . . . . . . . . . . . Robot Schematic 5 | . . . . . . . . . 5 . . . . . . . . . . . . . . . . . . . . . . Robot Analysis 8 | . 2 . . . . 1 . . . . . . . . . . 1 . . 2 . . . . . . . 2 . . . Prototype ID Bank 10 | . 1 . . . . 1 . . 3 . 2 . . . . 1 . . . . . . . . . 1 . 1 . . . Open Door 9 | . . . . . . . 1 . . . . . . . . 1 . . . . . 1 . 2 . . . 4 . . . Branch Access Points 4 | . 1 . . . . 1 . . . . . . . . . . . . . . . . . . . 1 1 . . . . Emergency Access Points 1 | . . . . . . . . . . . . . . . . . . . . . . . . . . . 1 . . . . Unreport Threat 3 | . . . . . . 2 . . . . . . . . . . . . . . . . . . . 1 . . . . . Locate Traps 5 | . 1 . . . . 1 . . . . . . . . . . . . . . . . . . . 1 1 1 . . . Recall Investigation 2 | . 1 . . . . . . . . . . . . . . 1 . . . . . . . . . . . . . . . Zone Layout 3 | . 1 . . . . 1 . . . . . . . . . . . . . 1 . . . . . . . . . . . EX-Prototype ID Bank 1 | . . . 1 . . . . . . . . . . . . . . . . . . . . . . . . . . . . Disengage Seal 2 | . . . . . . . . . . . . . . . . . . . . . . . . . . . . . . . 2 Fabricator Hacks 3 | . . . . . . 3 . . . . . . . . . . . . . . . . . . . . . . . . . Load Schematic 2 | . . . . . . 2 . . . . . . . . . . . . . . . . . . . . . . . . . Build 1 | . . . . . . 1 . . . . . . . . . . . . . . . . . . . . . . . . . Repair Station Hacks 2 | . . . . . . 1 . . . . . . . . . . . . . . 1 . . . . . . . . . . Scan Component 1 | . . . . . . . . . . . . . . . . . . . . . 1 . . . . . . . . . . Refit 1 | . . . . . . 1 . . . . . . . . . . . . . . . . . . . . . . . . . Recycling Unit Hacks . | . . . . . . . . . . . . . . . . . . . . . . . . . . . . . . . . Scanalyzer 28 | . . . . . 15 4 . . . . . . . . . . . . . . . . . . . 2 7 . . . . Insert Component 15 | . . . . . 7 2 . . . . . . . . . . . . . . . . . . . 1 5 . . . . Analyze 13 | . . . . . 8 2 . . . . . . . . . . . . . . . . . . . 1 2 . . . . Garrison Access Hacks 2 | . . . . . . 1 . . . . . . . . . . . . . . . . . . . . 1 . . . . Seal Access 2 | . . . . . . 1 . . . . . . . . . . . . . . . . . . . . 1 . . . . Unauthorized Hacks 34 | . 4 . . . 1 8 . . . . 1 . . . . 3 1 . . 3 . . . . . 2 3 3 . 2 3 Terminals 27 | . 4 . . . 1 3 . . . . 1 . . . . 3 1 . . 3 . . . . . 2 3 3 . . 3 Track 4 | . 1 . . . . . . . . . . . . . . 1 . . . . . . . . . . . 1 . . 1 Assimilate 1 | . . . . . . . . . . . . . . . . . . . . . . . . . . . 1 . . . . Botnet 19 | . 2 . . . 1 3 . . . . 1 . . . . 2 1 . . 2 . . . . . 1 2 2 . . 2 Disrupt 2 | . . . . . . . . . . . . . . . . . . . . 1 . . . . . 1 . . . . . Operators 1 | . 1 . . . . . . . . . . . . . . . . . . . . . . . . . . . . . . Fabricators 1 | . . . . . . 1 . . . . . . . . . . . . . . . . . . . . . . . . . Prioritize 1 | . . . . . . 1 . . . . . . . . . . . . . . . . . . . . . . . . . Repair Stations . | . . . . . . . . . . . . . . . . . . . . . . . . . . . . . . . . Recycling Units 4 | . . . . . . 4 . . . . . . . . . . . . . . . . . . . . . . . . . Monitor 1 | . . . . . . 1 . . . . . . . . . . . . . . . . . . . . . . . . . Reject 2 | . . . . . . 2 . . . . . . . . . . . . . . . . . . . . . . . . . Recyclers 1 | . . . . . . 1 . . . . . . . . . . . . . . . . . . . . . . . . . Scanalyzers . | . . . . . . . . . . . . . . . . . . . . . . . . . . . . . . . . Garrison Access 2 | . . . . . . . . . . . . . . . . . . . . . . . . . . . . . . 2 . Jam 2 | . . . . . . . . . . . . . . . . . . . . . . . . . . . . . . 2 . Data Cores Recovered . | . . . . . . . . . . . . . . . . . . . . . . . . . . . . . . . . Used . | . . . . . . . . . . . . . . . . . . . . . . . . . . . . . . . . Hacking Detections 67 | . 3 . . . 3 16 . . . 1 3 . . . . 3 2 1 . 7 1 . . . . 3 3 8 . 5 8 Full Trace Events 9 | . 2 . . . 1 2 . . . 1 . . . . . . . . . . . . . . . . 1 1 . . 1 Feedback Events . | . . . . . . . . . . . . . . . . . . . . . . . . . . . . . . . . Feedback Blocked . | . . . . . . . . . . . . . . . . . . . . . . . . . . . . . . . . Robot Schematics Acquired 5 | . . . . . . . . . 5 . . . . . . . . . . . . . . . . . . . . . . Robots Built . | . . . . . . . . . . . . . . . . . . . . . . . . . . . . . . . . Matter . | . . . . . . . . . . . . . . . . . . . . . . . . . . . . . . . . Time . | . . . . . . . . . . . . . . . . . . . . . . . . . . . . . . . . Total Robot Build Rating . | . . . . . . . . . . . . . . . . . . . . . . . . . . . . . . . . Part Schematics Acquired 19 | . . . . . 7 4 . . 5 . . . . . . . . . . . . . . . . 1 2 . . . . Parts Built 2 | . . . . . . 2 . . . . . . . . . . . . . . . . . . . . . . . . . Matter 146 | . . . . . . 146 . . . . . . . . . . . . . . . . . . . . . . . . . Time 73 | . . . . . . 73 . . . . . . . . . . . . . . . . . . . . . . . . . Total Part Build Rating 6 | . . . . . . 6 . . . . . . . . . . . . . . . . . . . . . . . . . Parts Repaired . | . . . . . . . . . . . . . . . . . . . . . . . . . . . . . . . . Time . | . . . . . . . . . . . . . . . . . . . . . . . . . . . . . . . . Parts Recycled . | . . . . . . . . . . . . . . . . . . . . . . . . . . . . . . . . Recycled Matter . | . . . . . . . . . . . . . . . . . . . . . . . . . . . . . . . . Retrieved Matter . | . . . . . . . . . . . . . . . . . . . . . . . . . . . . . . . . Retrieved Components . | . . . . . . . . . . . . . . . . . . . . . . . . . . . . . . . . Parts Scanalyzed 12 | . . . . . 7 2 . . . . . . . . . . . . . . . . . . . 1 2 . . . . Part Schematics Acquired 12 | . . . . . 7 2 . . . . . . . . . . . . . . . . . . . 1 2 . . . . Parts Damaged 1 | . . . . . 1 . . . . . . . . . . . . . . . . . . . . . . . . . . Bothacking | -11 -10 -10 -10 -9 -8 -7 -7 -7 -7 -6 -6 -6 -6 -6 -5 -5 -5 -5 -5 -5 -4 -4 -4 -4 -3 -3 -3 -3 -2 -1 -1 ------------ Run | Scr Mat Min Exi Min Mat Fac Low Low Dat Pro Fac Low Low Zio Pro Fac Ext Cet Arc Hub Fac Upp Upp War Pro Res Qua Sec Res Acc Com Used RIF Installer . | . . . . . . . . . . . . . . . . . . . . . . . . . . . . . . . . Robots Hacked 10 | . . 2 4 . . . . . 1 1 . . . 1 . . . . . . . . . . . . . . . . 1 Non-combat 3 | . . . 3 . . . . . . . . . . . . . . . . . . . . . . . . . . . . Combat 7 | . . 2 1 . . . . . 1 1 . . . 1 . . . . . . . . . . . . . . . . 1 Robot Hacks Applied 11 | . . 2 4 . . . . . 1 1 . . . 1 . . . . . . . . . . . . . . . . 2 parse_system 11 | . . 2 4 . . . . . 1 1 . . . 1 . . . . . . . . . . . . . . . . 2 Relay Couplers Released 8 | . . . . . . 4 . . . . . . . . . . . . . . . . . . . . . . 4 . . Programmers 8 | . . . . . . 4 . . . . . . . . . . . . . . . . . . . . . . 4 . . Robots Rewired 21 | . . . . . . . . 1 . . . . . . . 1 14 . . . . . . 5 . . . . . . . Allies Hacked . | . . . . . . . . . . . . . . . . . . . . . . . . . . . . . . . . Hacks Repelled . | . . . . . . . . . . . . . . . . . . . . . . . . . . . . . . . . Allies | -11 -10 -10 -10 -9 -8 -7 -7 -7 -7 -6 -6 -6 -6 -6 -5 -5 -5 -5 -5 -5 -4 -4 -4 -4 -3 -3 -3 -3 -2 -1 -1 -------- Run | Scr Mat Min Exi Min Mat Fac Low Low Dat Pro Fac Low Low Zio Pro Fac Ext Cet Arc Hub Fac Upp Upp War Pro Res Qua Sec Res Acc Com Total Allies 43 | . . . . 2 . . . 1 . 1 . . . 7 . 1 21 5 . . . . . 5 . . . . . . . Largest Group 16 | . . . . 2 2 1 . 1 1 2 1 . . 7 7 1 16 14 14 12 1 1 1 5 . . . . . . . Highest-Rated Group 885 | . . . . 41 41 31 . 32 32 126 32 . . 208 208 60 645 885 885 652 60 60 60 274 . . . . . . . Highest-Rated Ally 156 | . . . . 31 31 31 . 32 32 94 32 . . 42 42 60 156 134 134 94 60 60 60 60 . . . . . . . Total Orders 23 | . . . . . . . . 3 1 6 . . . . . 2 3 . . . . 4 2 2 . . . . . . . STAY 11 | . . . . . . . . 2 1 3 . . . . . 1 . . . . . 2 1 1 . . . . . . . FOLLOW 9 | . . . . . . . . 1 . 3 . . . . . 1 . . . . . 2 1 1 . . . . . . . EXPLORE 3 | . . . . . . . . . . . . . . . . . 3 . . . . . . . . . . . . . . Ally Attacks 780 | . . . . . 28 7 . . . 12 1 . . . 50 . 177 66 12 123 . . . 27 . . 277 . . . . Total Damage 14645 | . . . . . 361 42 . . . 319 12 . . . 998 . 3302 1526 238 3590 . . . 1516 . . 2741 . . . . Kills 110 | . . . . . 7 . . . . 5 . . . . 8 . 25 13 4 30 . . . 7 . . 11 . . . . Allies Corrupted 1 | . . . . . . . . . . . . . . . . . . . . . . . . . . . 1 . . . . Allies Melted 1 | . . . . . . . . . . 1 . . . . . . . . . . . . . . . . . . . . . Intel | -11 -10 -10 -10 -9 -8 -7 -7 -7 -7 -6 -6 -6 -6 -6 -5 -5 -5 -5 -5 -5 -4 -4 -4 -4 -3 -3 -3 -3 -2 -1 -1 ------- Run | Scr Mat Min Exi Min Mat Fac Low Low Dat Pro Fac Low Low Zio Pro Fac Ext Cet Arc Hub Fac Upp Upp War Pro Res Qua Sec Res Acc Com Robot Analysis Total 8 | . 2 . . . . 1 . . . . . . . . . . 1 . . 2 . . . . . . . 2 . . . Derelict Logs Recovered 18 | . . 1 . 2 . . 3 . . 2 . 2 2 1 1 . . . . . . 2 2 . . . . . . . . Drone Launches 33 | . . . . . . . . . . . . . . . . . 3 . . . . . . . . . 30 . . . . Drone Recoveries . | . . . . . . . . . . . . . . . . . . . . . . . . . . . . . . . . Exploration | -11 -10 -10 -10 -9 -8 -7 -7 -7 -7 -6 -6 -6 -6 -6 -5 -5 -5 -5 -5 -5 -4 -4 -4 -4 -3 -3 -3 -3 -2 -1 -1 ------------- Run | Scr Mat Min Exi Min Mat Fac Low Low Dat Pro Fac Low Low Zio Pro Fac Ext Cet Arc Hub Fac Upp Upp War Pro Res Qua Sec Res Acc Com Turns Passed 44324 | 97 428 506 661 539 586 3199 2697 6273 115 2626 556 2145 3063 1176 1871 380 1247 253 99 372 262 1198 1860 1163 1494 950 789 2478 1489 909 2843 Spaces Moved 26642 | 56 230 382 500 347 307 1909 1155 3349 89 1825 277 1356 1394 861 1308 250 617 94 64 245 187 836 1423 875 1008 411 480 1270 954 666 1917 Core 13 | 13 . . . . . . . . . . . . . . . . . . . . . . . . . . . . . . . Treads 93 | . . . . . . . . . . . . . 93 . . . . . . . . . . . . . . . . . . Legs 26536 | 43 230 382 500 347 307 1909 1155 3349 89 1825 277 1356 1301 861 1308 250 617 94 64 245 187 836 1423 875 1008 411 480 1270 954 666 1917 Wheels . | . . . . . . . . . . . . . . . . . . . . . . . . . . . . . . . . Hover . | . . . . . . . . . . . . . . . . . . . . . . . . . . . . . . . . Flight . | . . . . . . . . . . . . . . . . . . . . . . . . . . . . . . . . Fastest Speed 50 | 50 120 120 120 150 150 125 123 123 126 126 120 120 120 120 120 120 120 120 120 120 120 120 120 120 120 118 116 107 105 105 104 Average Speed 123 | 103 120 120 123 150 150 131 128 125 126 126 130 120 141 133 120 120 120 120 120 120 120 120 120 120 120 118 121 118 119 105 116 Slowest Speed 180 | 120 120 120 150 150 180 153 155 126 126 126 156 150 180 150 150 120 120 120 120 120 120 120 120 120 120 120 146 148 143 105 150 Overloaded Moves . | . . . . . . . . . . . . . . . . . . . . . . . . . . . . . . . . Propulsion Burnouts . | . . . . . . . . . . . . . . . . . . . . . . . . . . . . . . . . Robots Hopped . | . . . . . . . . . . . . . . . . . . . . . . . . . . . . . . . . Cave-ins Triggered 1 | . . . . . . 1 . . . . . . . . . . . . . . . . . . . . . . . . . Teleports 2 | . . . . . . . . . . . . . . . . . . . . . . . . . . . . . 2 . . Exploration Rate (%) 59 | 3 45 71 70 66 32 53 90 95 74 89 6 98 97 84 97 6 87 55 72 27 4 82 97 93 91 14 49 55 29 22 54 Regions Visited 31 Branch Regions 22 Pre-discovered Areas 5 | . . 1 . . . . . . 1 . . . . 2 1 . . . . . . . . . . . . . . . . Known Exits Taken 28 | . 1 . 1 . 1 1 1 1 1 1 1 1 1 1 1 1 1 1 1 1 1 1 1 1 1 1 1 1 1 1 . Unknown Exits Taken 3 | 1 . 1 . 1 . . . . . . . . . . . . . . . . . . . . . . . . . . . Scrap Searched 34 | . . 1 . 4 . . 2 4 . 3 . 3 2 3 3 . . . . . . 2 6 . 1 . . . . . . Spaces Dug 157 | . . . . . . 10 2 4 . 5 5 . 6 . . 2 . . . . . 3 1 . 6 17 16 35 10 29 6 Terrain Destroyed 1380 | . . . . . 64 208 9 9 . 37 5 1 9 . . 3 84 9 2 200 . 12 20 3 40 36 27 93 66 36 407 Melee . | . . . . . . . . . . . . . . . . . . . . . . . . . . . . . . . . Projectile 454 | . . . . . . 20 5 9 . 6 5 1 9 . . 3 26 9 2 31 . 12 20 1 24 36 27 93 30 10 75 AOE 926 | . . . . . 64 188 4 . . 31 . . . . . . 58 . . 169 . . . 2 16 . . . 36 26 332 Terrain Rammed . | . . . . . . . . . . . . . . . . . . . . . . . . . . . . . . . . Walls Destroyed . | . . . . . . . . . . . . . . . . . . . . . . . . . . . . . . . . Machines Disabled . | . . . . . . . . . . . . . . . . . . . . . . . . . . . . . . . . Actions | -11 -10 -10 -10 -9 -8 -7 -7 -7 -7 -6 -6 -6 -6 -6 -5 -5 -5 -5 -5 -5 -4 -4 -4 -4 -3 -3 -3 -3 -2 -1 -1 --------- Run | Scr Mat Min Exi Min Mat Fac Low Low Dat Pro Fac Low Low Zio Pro Fac Ext Cet Arc Hub Fac Upp Upp War Pro Res Qua Sec Res Acc Com Total 35829 | 82 309 416 544 360 384 2353 2350 5287 90 2086 432 1861 2458 888 1581 302 1006 218 80 278 225 1008 1537 969 1259 760 636 1814 1194 788 2274 Wait 6337 | . 25 17 . 11 8 165 1144 1699 . 196 100 462 984 19 225 15 138 107 7 4 27 149 50 . 226 245 88 135 22 23 46 Move 26611 | 55 229 381 499 346 306 1909 1154 3348 88 1824 276 1355 1393 860 1307 249 616 93 63 244 186 835 1422 874 1007 410 479 1269 953 665 1916 Hop . | . . . . . . . . . . . . . . . . . . . . . . . . . . . . . . . . Pick Up 536 | 13 6 2 25 . 12 39 27 47 . 1 5 24 32 1 12 5 7 2 1 . 4 1 10 8 . 1 5 67 67 30 82 Fast Attach 80 | . . . 2 . 4 18 . 4 . . 3 1 . 1 . 3 7 3 1 2 . . 1 5 1 6 5 1 6 . 6 Attach 246 | 7 . . 1 . 5 12 7 12 . . 3 4 7 1 1 2 3 . . . 5 . 1 4 . 1 8 54 40 16 52 Detach 29 | . . . . . 1 . . 2 . . 1 1 1 . . . 1 . . . . . . 2 . . . 8 2 3 7 Swap 301 | 1 3 6 2 . 8 30 3 22 1 12 13 3 5 3 10 2 17 1 2 5 1 6 6 9 5 16 8 58 15 11 17 Drop 327 | . 8 3 11 . 13 45 4 33 . 1 7 4 9 2 12 4 17 5 3 2 2 . 10 17 1 5 13 29 35 3 29 Fire 1138 | 6 38 5 . 3 27 135 11 105 . 50 24 7 25 . 12 20 55 7 3 21 . 17 34 9 19 76 30 193 54 37 115 Melee 19 | . . 2 4 . . . . 8 1 1 . . . 1 . . . . . . . . . . . . . . . . 2 Ram . | . . . . . . . . . . . . . . . . . . . . . . . . . . . . . . . . Kick . | . . . . . . . . . . . . . . . . . . . . . . . . . . . . . . . . Crush . | . . . . . . . . . . . . . . . . . . . . . . . . . . . . . . . . Escape Stasis . | . . . . . . . . . . . . . . . . . . . . . . . . . . . . . . . . Rewire 189 | . . . . . . . . 1 . . . . . . . 2 145 . . . . . . 39 . . . . . . 2 Trap 16 | . . . . . . . . 6 . 1 . . 2 . 2 . . . . . . . 3 2 . . . . . . . Miscellaneous . | . . . . . . . . . . . . . . . . . . . . . . . . . . . . . . . . Route ------- -11/Scrapyard -10/Materials (discovered 2 exits: [*Mat] / *Min) -10/Mines (discovered 3 exits: [*Mat x2] / *Exi) -10/Exiles (discovered 2 exits: *Min x2) -9/Mines -8/Materials (discovered 3 exits: *Fac x3) -7/Factory (discovered 5 exits: *Fac x2 / *Sto / *Low x2) -7/Lower Caves -7/Lower Caves (discovered 2 exits: *Fac / *Dat) -7/Data Miner -6/Proximity Caves -6/Factory -6/Lower Caves -6/Lower Caves (discovered 2 exits: *Fac / *Zio) -6/Zion -5/Proximity Caves -5/Factory (discovered 5 exits: Fac x2 / Upp x2 / *Ext) -5/Extension (discovered 2 exits: *Fac / *Cet) -5/Cetus -5/Archives (discovered 2 exits: *Fac / *Hub) -5/Hub_04(d) (discovered 3 exits: *Fac x3) -4/Factory -4/Upper Caves -4/Upper Caves (discovered 2 exits: *Res / *War) -4/Warlord -3/Proximity Caves -3/Research (discovered 4 exits: Res x2 / *Qua x2) -3/Quarantine (discovered 2 exits: *Res / *Sec) -3/Section 7 -2/Research (discovered 2 exits: *Acc x2) -1/Access -1/Command To Fleet Rendezvous History --------- Turn | Location | Event 4 | -11/Scrapyard | Discovered new exit (range 16) 98 | -11/Scrapyard | Entered Materials 305 | -10/Materials | Build established: Mutant 396 | -10/Materials | Discovered new exit (range 16) 449 | -10/Materials | Central database locked down 489 | -10/Materials | Identified exit to Mines 526 | -10/Materials | Entered Mines 548 | -10/Mines | Met a Derelict bent on vengeance 791 | -10/Mines | YI-UF0 nonchalantly dropped a Grenade Launcher on the ground 821 | -10/Mines | Assembled infested the area 851 | -10/Mines | Met 8R-AWN 901 | -10/Mines | Discovered new exit (range 9) 938 | -10/Mines | Discovered new exit (range 9) 948 | -10/Mines | Learned location of Storage (-7) 956 | -10/Mines | Discovered new exit (range 5) 1032 | -10/Mines | Entered Exiles 1033 | -10/Exiles | Identified exit to Mines 1062 | -10/Exiles | Welcomed by 8R-AWN 1086 | -10/Exiles | Met EX-HEX 1122 | -10/Exiles | Met EX-BIN 1149 | -10/Exiles | Aligned with FarCom system 1150 | -10/Exiles | Given EX-Vault access code 1178 | -10/Exiles | Opened EX-Vault 1187 | -10/Exiles | Found Lightpack 2.0 1190 | -10/Exiles | Found Army-in-a-Box 1195 | -10/Exiles | Found Cloak of Protection 1230 | -10/Exiles | Warned to stay clear of 0b10 Research branches 1261 | -10/Exiles | Met EX-DEC 1339 | -10/Exiles | Learned about 8R-AWN's background 1488 | -10/Exiles | Build established: Hauler-Mutant 1693 | -10/Exiles | Stole three prototypes: Lightpack 2.0, Cloak of Protection, Army-in-a-Box 1693 | -10/Exiles | Entered Mines 1705 | -9/Mines | Learned location of 1 exit from Materials 1741 | -9/Mines | Learned 8 Materials zone layouts 1852 | -9/Mines | Build established: Mutant 2109 | -9/Mines | Excavation squad dispatched 2109 | -9/Mines | A large section of the Mines collapsed 2180 | -9/Mines | Discovered new exit (range 5) 2232 | -9/Mines | Entered Materials 2232 | -8/Materials | Accompanied by 2 allies 2232 | -8/Materials | Evolved 4 slots: Propulsion x1, Utility x2, Weapon x1 2233 | -8/Materials | Identified exit to Factory 2237 | -8/Materials | Led the pair of lost Derelicts to an unsafe place 2541 | -8/Materials | Build established: Skirmisher 2553 | -8/Materials | Destroyed 7 combat bots 2818 | -8/Materials | Entered Factory 2818 | -7/Factory | Accompanied by 1 ally 2818 | -7/Factory | Evolved 2 slots: Utility x1, Weapon x1 2820 | -7/Factory | FarCom data flow suspended 3299 | -7/Factory | Discovered new exit (range 15) 3370 | -7/Factory | Build established: Gunner 4126 | -7/Factory | Discovered new exit (range 11) 4138 | -7/Factory | Identified exit to Factory 4727 | -7/Factory | Garrison activated, responded to threat 4985 | -7/Factory | Discovered exit to Factory (range 15) 4986 | -7/Factory | Crushed by falling debris 5177 | -7/Factory | Build established: Hauler-Mutant 5245 | -7/Factory | Identified exit to Storage 5534 | -7/Factory | Lost 4 parts (1n1u2w) 5697 | -7/Factory | Local fabrication network quarantined 5712 | -7/Factory | Fabricated Adv. Signal Interpreter (x2) 5744 | -7/Factory | Identified exit to Lower Caves 6017 | -7/Factory | Entered Lower Caves 6017 | -7/Lower Caves | Spotted 1O-BOO(f) 6017 | -7/Lower Caves | Spotted 7I-IZW(f) 6018 | -7/Lower Caves | Encountered a Master Thief 6018 | -7/Lower Caves | Encountered a Master Thief 6022 | -7/Lower Caves | Spotted SS-BGE(f) 6023 | -7/Lower Caves | Encountered a Master Thief 6029 | -7/Lower Caves | System Backup Module stolen by Master Thief 6032 | -7/Lower Caves | Arc Projector stolen by Master Thief 6033 | -7/Lower Caves | Enh. Nuclear Core stolen by Master Thief 6565 | -7/Lower Caves | Build established: Scavenger-Skirmisher 6964 | -7/Lower Caves | Build established: Scavenger-Mutant 7163 | -7/Lower Caves | Learned Factory emergency access door positions 7172 | -7/Lower Caves | Learned 4 Factory zone layouts 7224 | -7/Lower Caves | Discovered new exit (range 9) 8713 | -7/Lower Caves | Identified exit to Lower Caves 8714 | -7/Lower Caves | Entered another Lower Caves area 8714 | -7/Lower Caves | Spotted JA-64Y(f) 8715 | -7/Lower Caves | Encountered a Master Thief 8736 | -7/Lower Caves | Destroyed JA-64Y(f) 8839 | -7/Lower Caves | Discovered exit to Factory (range 9) 9708 | -7/Lower Caves | Build established: Hauler-Mutant 10043 | -7/Lower Caves | Build established: Scavenger-Mutant 12288 | -7/Lower Caves | Build established: Scavenger-Skirmisher 12725 | -7/Lower Caves | Build established: Scavenger-Mutant 12865 | -7/Lower Caves | Attracted the attention of an 0b10 checkpoint 12912 | -7/Lower Caves | Discovered new exit (range 12) 12936 | -7/Lower Caves | Identified exit to Data Miner 13139 | -7/Lower Caves | Build established: Scavenger-Skirmisher 14031 | -7/Lower Caves | Build established: Scavenger-Mutant 14987 | -7/Lower Caves | Entered Data Miner 14987 | -7/Data Miner | Accompanied by 1 ally 14987 | -7/Data Miner | Discovered new exit (range 7) 15011 | -7/Data Miner | Met Data Miner 15051 | -7/Data Miner | Learned location of Section 7 (-3) 15051 | -7/Data Miner | Acquired the access code to Warlord's prototype stash 15070 | -7/Data Miner | Received God Mode back door access code from Data Miner 15101 | -7/Data Miner | Identified exit to Proximity Caves 15102 | -7/Data Miner | Entered Proximity Caves 15102 | -6/Proximity Caves | Accompanied by 1 ally 16089 | -6/Proximity Caves | Discovered exit to Factory (range 12) 16297 | -6/Proximity Caves | Learned 4 Factory zone layouts 16789 | -6/Proximity Caves | Escorted by Enhanced Grunt 16838 | -6/Proximity Caves | Learned 4 Factory zone layouts 17531 | -6/Proximity Caves | Attracted the attention of an 0b10 base 17535 | -6/Proximity Caves | Learned Factory stockpile data 17728 | -6/Proximity Caves | Entered Factory 17728 | -6/Factory | Accompanied by 1 ally 17728 | -6/Factory | Evolved 2 slots: Power x1, Utility x1 18246 | -6/Factory | Discovered new exit (range 15) 18271 | -6/Factory | Identified exit to Lower Caves 18284 | -6/Factory | Entered Lower Caves 18284 | -6/Lower Caves | Spotted 9A-05K(f) 18285 | -6/Lower Caves | Encountered a Master Thief 18292 | -6/Lower Caves | Mak. Armor Plating stolen by Master Thief 18295 | -6/Lower Caves | Destroyed 9A-05K(f) 18483 | -6/Lower Caves | Learned Factory non-interactive machine intel 18691 | -6/Lower Caves | Build established: Hauler-Mutant 19018 | -6/Lower Caves | Encountered a Warlord checkpoint 19297 | -6/Lower Caves | Learned Factory terminal intel 19305 | -6/Lower Caves | Discovered new exit (range 13) 19316 | -6/Lower Caves | Identified exit to Lower Caves 20429 | -6/Lower Caves | Entered another Lower Caves area 20844 | -6/Lower Caves | Discovered new exit (range 15) 21287 | -6/Lower Caves | Spotted B-75 Beast 21743 | -6/Lower Caves | Learned 8 Factory zone layouts 21852 | -6/Lower Caves | Discovered new exit (range 21) 21859 | -6/Lower Caves | Spotted 74-WEE(f) 21861 | -6/Lower Caves | Encountered a Master Thief 21861 | -6/Lower Caves | Spotted E7-QTI(f) 21862 | -6/Lower Caves | Encountered a Master Thief 21862 | -6/Lower Caves | Spotted 8G-4KY(f) 21862 | -6/Lower Caves | Spotted KH-8YB(f) 21863 | -6/Lower Caves | Encountered a Master Thief 21863 | -6/Lower Caves | Encountered a Master Thief 21865 | -6/Lower Caves | Lgt. Angular Momentum Engine stolen by Master Thief 21866 | -6/Lower Caves | Spotted N8-UN9(f) 21867 | -6/Lower Caves | Encountered a Master Thief 21872 | -6/Lower Caves | Flexi-carbon Leg stolen by Master Thief 21876 | -6/Lower Caves | Imp. Deuterium Engine stolen by Master Thief 21882 | -6/Lower Caves | Destroyed 74-WEE(f) 21883 | -6/Lower Caves | Imp. Carbon-fiber Leg stolen by Master Thief 21996 | -6/Lower Caves | Identified exit to Zion 23492 | -6/Lower Caves | Entered Zion 23534 | -6/Zion | Discovered new exit (range 23) 23563 | -6/Zion | System corruption cleaned by Quarantine Array 23597 | -6/Zion | Received a hallucinogenic algorithm 23623 | -6/Zion | Gained Derelict followers 23917 | -6/Zion | Given the Hacking Drone Bay 23960 | -6/Zion | Build established: Hauler-Assassin 24204 | -6/Zion | Given A8's code to call for help 24590 | -6/Zion | Identified exit to Proximity Caves 24668 | -6/Zion | Entered Proximity Caves 24668 | -5/Proximity Caves | Accompanied by 7 allies 24709 | -5/Proximity Caves | Build established: Hauler-Mutant 25386 | -5/Proximity Caves | Build established: Scavenger-Skirmisher 25642 | -5/Proximity Caves | Discovered new exit (range 21) 26538 | -5/Proximity Caves | Identified exit to Factory 26539 | -5/Proximity Caves | Entered Factory 26539 | -5/Factory | Evolved 2 slots: Propulsion x1, Utility x1 26540 | -5/Factory | Identified exit to Upper Caves 26541 | -5/Factory | Identified exit to Factory 26541 | -5/Factory | Identified exit to Extension 26542 | -5/Factory | Loaded intel: 216 non-interactive machine locations 26543 | -5/Factory | Loaded intel: 22 terminal locations 26609 | -5/Factory | Incoming investigation squad redirected 26919 | -5/Factory | Entered Extension 26919 | -5/Extension | Accompanied by 1 ally 26996 | -5/Extension | Rescued a captive Derelict 27346 | -5/Extension | Rescued a captive Derelict 27376 | -5/Extension | Rescued A7 27611 | -5/Extension | Disrupted transfer network 27745 | -5/Extension | Spotted B-75 Beast 27766 | -5/Extension | Spotted B-75 Beast 27774 | -5/Extension | Allies destroyed B-75 Beast 27874 | -5/Extension | Rescued a captive Derelict 27945 | -5/Extension | Build established: Scavenger-Tank 28011 | -5/Extension | Rescued a captive Derelict 28012 | -5/Extension | Rescued a captive Derelict 28069 | -5/Extension | Rescued a captive Derelict 28124 | -5/Extension | Discovered exit to Factory (range 10) 28125 | -5/Extension | Discovered new exit (range 6) 28153 | -5/Extension | Identified exit to Cetus 28166 | -5/Extension | Entered Cetus 28166 | -5/Cetus | Accompanied by 14 allies (A7) 28171 | -5/Cetus | Acquired a Cetus Manufacturing Module code from A7 28183 | -5/Cetus | Spotted Cetus Guard 28183 | -5/Cetus | Spotted Cetus Guard 28185 | -5/Cetus | Spotted Cetus Guard 28187 | -5/Cetus | Spotted Cetus Guard 28193 | -5/Cetus | Allies destroyed Cetus Guard 28195 | -5/Cetus | Allies destroyed Cetus Guard 28199 | -5/Cetus | Allies destroyed Cetus Guard 28206 | -5/Cetus | Allies destroyed Cetus Guard 28254 | -5/Cetus | Started Cetus Manufacturing Module 28272 | -5/Cetus | Discovered new exit (range 15) 28279 | -5/Cetus | Manufactured an Enhanced Grunt 28304 | -5/Cetus | Manufactured an Enhanced Grunt 28308 | -5/Cetus | Identified exit to Archives 28329 | -5/Cetus | Manufactured an Enhanced Grunt 28354 | -5/Cetus | Manufactured an Enhanced Grunt 28379 | -5/Cetus | Manufactured an Enhanced Grunt 28419 | -5/Cetus | Entered Archives 28419 | -5/Archives | Accompanied by 14 allies (A7) 28465 | -5/Archives | Discovered exit to Factory (range 16) 28481 | -5/Archives | Discovered new exit (range 16) 28488 | -5/Archives | Unable to access archive contents 28506 | -5/Archives | Identified exit to Hub_04(d) 28518 | -5/Archives | Entered Hub_04(d) 28518 | -5/Hub_04(d) | Accompanied by 12 allies 28527 | -5/Hub_04(d) | Discovered exit to Factory (range 22) 28642 | -5/Hub_04(d) | Discovered exit to Factory (range 13) 28651 | -5/Hub_04(d) | Discovered exit to Factory (range 22) 28780 | -5/Hub_04(d) | Disrupted transfer network 28818 | -5/Hub_04(d) | First assault squad dispatched 28845 | -5/Hub_04(d) | Incoming assault squad redirected 28868 | -5/Hub_04(d) | Network Hub disabled 28890 | -5/Hub_04(d) | Entered Factory 28890 | -4/Factory | Accompanied by 1 ally 28890 | -4/Factory | Evolved 2 slots: Propulsion x1, Utility x1 28905 | -4/Factory | Found Prototype Launcher 28906 | -4/Factory | Identified Tesla Bomb Launcher 29058 | -4/Factory | Discovered new exit (range 19) 29140 | -4/Factory | First assault squad dispatched 29150 | -4/Factory | Identified exit to Upper Caves 29152 | -4/Factory | Entered Upper Caves 29152 | -4/Upper Caves | Accompanied by 1 ally 29195 | -4/Upper Caves | Build established: Scavenger-Skirmisher 29206 | -4/Upper Caves | Learned Research emergency access door positions 29405 | -4/Upper Caves | Learned 12 Research zone layouts 29594 | -4/Upper Caves | Build established: Scavenger-Mutant 30036 | -4/Upper Caves | Discovered new exit (range 20) 30223 | -4/Upper Caves | Identified exit to Upper Caves 30350 | -4/Upper Caves | Entered another Upper Caves area 30350 | -4/Upper Caves | Accompanied by 1 ally 30361 | -4/Upper Caves | Discovered new exit (range 17) 30504 | -4/Upper Caves | Identified exit to Research 30669 | -4/Upper Caves | Learned Research security intel 30879 | -4/Upper Caves | Learned location of 1 exit from Research 31490 | -4/Upper Caves | Encountered a Warlord checkpoint 31508 | -4/Upper Caves | Discovered new exit (range 13) 31757 | -4/Upper Caves | Identified exit to Warlord 32210 | -4/Upper Caves | Entered Warlord 32233 | -4/Warlord | Discovered new exit (range 19) 32364 | -4/Warlord | Found Prototype Device 32365 | -4/Warlord | Identified Minesniffer Drone Bay 32371 | -4/Warlord | Found Minesniffer Drone Bay 32781 | -4/Warlord | Warlord's base attacked by MAIN.C 32790 | -4/Warlord | Met Warlord 32801 | -4/Warlord | Opened Warlord's prototype stash 32810 | -4/Warlord | Found Prototype Reactor 32820 | -4/Warlord | Found Prototype Processor 32820 | -4/Warlord | Identified Exp. Armor Integrity Analyzer 32831 | -4/Warlord | Found System Purifier 32918 | -4/Warlord | Found Prototype Energy Gun 32918 | -4/Warlord | Identified Vortex Rail 33131 | -4/Warlord | Warlord forces counterattacked 33153 | -4/Warlord | Spotted Executioner 33167 | -4/Warlord | Allies destroyed Executioner 33192 | -4/Warlord | P-70 Sage assimilated allied TZ-ESN(g) 33194 | -4/Warlord | P-70 Sage assimilated allied XZ-HXU(g) 33195 | -4/Warlord | P-70 Sage assimilated allied R6-DFS(g) 33203 | -4/Warlord | Spotted Striker 33203 | -4/Warlord | Spotted XZ-HXU(g) 33204 | -4/Warlord | Spotted Executioner 33224 | -4/Warlord | Spotted Striker 33226 | -4/Warlord | Allies destroyed Executioner 33314 | -4/Warlord | Opened side exit 33372 | -4/Warlord | Identified exit to Proximity Caves 33373 | -4/Warlord | Entered Proximity Caves 33737 | -3/Proximity Caves | Build established: Scavenger-Skirmisher 34117 | -3/Proximity Caves | Build established: Scavenger-Mutant 34499 | -3/Proximity Caves | Build established: Scavenger-Skirmisher 34646 | -3/Proximity Caves | Discovered exit to Research (range 9) 34803 | -3/Proximity Caves | Build established: Scavenger-Mutant 34867 | -3/Proximity Caves | Entered Research 34867 | -3/Research | Evolved 2 slots: Power x1, Weapon x1 34868 | -3/Research | Identified exit to Research 35174 | -3/Research | Identified exit to Quarantine 35817 | -3/Research | Entered Quarantine 35935 | -3/Quarantine | Found Alien Artifact 35985 | -3/Quarantine | Found Alien Artifact 35985 | -3/Quarantine | Identified Phase Redirector 36175 | -3/Quarantine | Discovered exit to Research (range 20) 36298 | -3/Quarantine | Identified Subatomic Replicator 36298 | -3/Quarantine | Identified Vortex Chain Reactor 36482 | -3/Quarantine | Spotted Fortress 36598 | -3/Quarantine | Discovered new exit (range 6) 36602 | -3/Quarantine | Identified exit to Section 7 36606 | -3/Quarantine | Entered Section 7 36686 | -3/Section 7 | Found Alien Artifact 36687 | -3/Section 7 | Identified Integrity Redistributor 36687 | -3/Section 7 | Used Integrity Redistributor, redistributed integrity from core (-148) 36815 | -3/Section 7 | Found Alien Artifact 36829 | -3/Section 7 | Identified Core Reset Matrix 36829 | -3/Section 7 | Used Core Reset Matrix 36833 | -3/Section 7 | Sensed 20 artifacts in vicinity 36939 | -3/Section 7 | System corruption reached 10% 37037 | -3/Section 7 | Spotted S7 Guard 37272 | -3/Section 7 | Spotted S7 Guard 37290 | -3/Section 7 | Found Integrated Singularity Reactor 37298 | -3/Section 7 | Installed Integrated Singularity Reactor, increased core energy generation (+20) 37342 | -3/Section 7 | Destroyed S7 Guard 37377 | -3/Section 7 | Found Prototype Protection 37400 | -3/Section 7 | Discovered exit to Research (range 7) 37505 | -3/Section 7 | Found Integrated Dissipator 37506 | -3/Section 7 | Installed Integrated Dissipator, increased core heat dissipation (+20) 37609 | -3/Section 7 | Destroyed 9 combat bots 37705 | -3/Section 7 | Found Core Reset Matrix 37890 | -3/Section 7 | Garrison activated, responded to threat 38013 | -3/Section 7 | Destroyed 8 combat bots 38016 | -3/Section 7 | Lost 9 parts (2p2n2u3w) 38112 | -3/Section 7 | Found Unknown Launcher 38114 | -3/Section 7 | Found Unknown Launcher 38436 | -3/Section 7 | Spotted Executioner 38437 | -3/Section 7 | Spotted Executioner 38447 | -3/Section 7 | Incoming investigation squad redirected 38457 | -3/Section 7 | Identified Hvy. Regenerative Plating 38521 | -3/Section 7 | Destroyed Executioner 38533 | -3/Section 7 | Destroyed Executioner 38564 | -3/Section 7 | Lost 5 parts (1p1n3w) 38606 | -3/Section 7 | First assault squad dispatched 38649 | -3/Section 7 | Found Terrabomb 38664 | -3/Section 7 | Found Transdimensional Reconstructor 38697 | -3/Section 7 | Core integrity fell below 50% 38713 | -3/Section 7 | Found Transdimensional Reconstructor 38720 | -3/Section 7 | Lost 5 parts (2n1u2w) 38744 | -3/Section 7 | Found Matter Drive 38755 | -3/Section 7 | Found Matter Drive 38779 | -3/Section 7 | Identified Gamma Bomb Array (x2) 38980 | -3/Section 7 | Incoming assault squad redirected 39084 | -3/Section 7 | Entered Research 39084 | -2/Research | Warlord forces began assault on 0b10 39084 | -2/Research | Evolved 2 slots: Propulsion x1, Weapon x1 39102 | -2/Research | Used Subatomic Replicator to replicate Lightpack 2.0 39194 | -2/Research | Research machine network offline 39248 | -2/Research | Met up with Warlord 39264 | -2/Research | Found Prototype Launcher 39265 | -2/Research | Identified Adv. Micro-nuke Launcher 39270 | -2/Research | Found Faulty Adv. Micro-nuke Launcher 39274 | -2/Research | Found Adv. Micro-nuke Launcher 39391 | -2/Research | Found Prototype Device 39392 | -2/Research | Identified Exp. Actuator Array 39447 | -2/Research | Spotted B-90 Cyclops 39505 | -2/Research | Borebot progress halted 39513 | -2/Research | Spotted Striker 39521 | -2/Research | Spotted Striker 39536 | -2/Research | Lost 6 parts (2p1n3w) 39554 | -2/Research | Borebot progress halted 39718 | -2/Research | Spotted Executioner 39745 | -2/Research | Borebot progress halted 39953 | -2/Research | Spotted Striker 39955 | -2/Research | Spotted Striker 39958 | -2/Research | Spotted Striker 39985 | -2/Research | Destroyed Striker 40012 | -2/Research | Lost 4 parts (2n2w) 40020 | -2/Research | Destroyed Striker 40063 | -2/Research | Lost 3 parts (1n2w) 40084 | -2/Research | Warlord invited to help at Command 40139 | -2/Research | Discovered new exit (range 11) 40150 | -2/Research | Identified exit to Access 40535 | -2/Research | Warped through subspace 40542 | -2/Research | Spotted Striker 40545 | -2/Research | Spotted Striker 40548 | -2/Research | Warped through subspace 40555 | -2/Research | Discovered exit to Access (range 4) 40573 | -2/Research | Entered Access 40573 | -1/Access | Evolved 2 slots: Utility x1, Weapon x1 40577 | -1/Access | Lost 3 parts (1u2w) 40896 | -1/Access | Lost 3 parts (1p2w) 41059 | -1/Access | Lost 4 parts (1p3w) 41386 | -1/Access | Discovered new exit (range 23) 41481 | -1/Access | Identified exit to Command 41482 | -1/Access | Entered Command 41847 | -1/Command | Lost 3 parts (1n1u1w) 41948 | -1/Command | Disengaged cave seal 41951 | -1/Command | Welcomed Warlord to Command 42014 | -1/Command | P-80 Master assimilated allied 3N-VTI(s) 42191 | -1/Command | Spotted B-99 Colossus 42203 | -1/Command | Build established: Scavenger-Executioner 42350 | -1/Command | Incoming investigation squad redirected 42491 | -1/Command | Lost 6 parts (3n1u2w) 42549 | -1/Command | Build established: Scavenger-Mutant 42598 | -1/Command | Lost 3 parts (1n2w) 42982 | -1/Command | First assault squad dispatched 42989 | -1/Command | Phase Generator disabled 43008 | -1/Command | Incoming assault squad redirected 43122 | -1/Command | Lost 4 parts (2n1u1w) 43275 | -1/Command | System corruption reached 10% 43335 | -1/Command | Lost 8 parts (1p1n2u4w) 43364 | -1/Command | Discovered new exit (range 22) 43508 | -1/Command | Incoming assault squad redirected 43527 | -1/Command | Disengaged cave seal 43691 | -1/Command | Incoming assault squad redirected 44031 | -1/Command | Used Terrabomb 44123 | -1/Command | Spotted M Guard 44123 | -1/Command | Spotted M Guard 44123 | -1/Command | Spotted Combat Programmer 44127 | -1/Command | Spotted Combat Programmer 44142 | -1/Command | Combat Programmer assimilated allied 6L-HPF(K) 44144 | -1/Command | Spotted 6L-HPF(K) 44148 | -1/Command | System corruption reached 30% 44156 | -1/Command | Combat Programmer assimilated allied LB-YLV(l) 44217 | -1/Command | Lost 18 parts (3p4n4u7w) 44247 | -1/Command | Core integrity fell below 50% 44285 | -1/Command | Lost 3 parts (1p2w) 44315 | -1/Command | Spotted B-99 Colossus 44316 | -1/Command | Spotted Executioner 44317 | -1/Command | Spotted Executioner 44324 | -1/Command | Spotted B-99 Colossus 44325 | *** | Heading to fleet! Last Messages --------------- 44315_ Penetrated by Slug. 44315_ Slug penetrates Wall. 44315_ Penetrated by Slug. 44316_ System corrupted: Component data lost. 44316_ EMDS Slug penetrates Wall. 44317_ Penetrated by Slug. 44319_ Knocked back. 44319_ Penetrated by Slug. 44319_ Adv. Heat Sink destroyed. 44319_ Slug penetrates Wall. 44320_ B-99 Colossus activates siege mode. 44320_ Penetrated by EMDS Slug. 44320_ Critical hit. 44320_ Matter Drive destroyed. 44324_ Slug penetrates Access Shell. 44324_ Slug penetrates Wall. 44324_ Slug penetrates Access Shell. 44324_ Slug penetrates Wall. 44324_ Penetrated by EMDS Slug. [Achievement: Home At Last?] Map ----- +----------------------------------------------------+ | " " " " ## ? "" ?# "" # | | """" " " " ## # # | | " " " #? ? ? #?? ? # | | " "/"/#######+####+######+## | | " | | " =!! | | " = ! | | " * | | " | | " """""""#######"""+###### | | " " " " | | " " " # | | " " # ! " | | " " #### # | | ?? """""""""""/""###?## p # | | ???" ##??## ""T " # ! | | ?#?# #?####! """"" # #### | | #?## """" ###?#########;p"####"""## %* #### | | #?## ""Y" #??#?#######p;""## # = | | ??## !| * ############;""### * # # | | ??## #?# #?# # " | | #######+###+!#####?# ### # | | ?????????+=!##?##?## ### # %=##### | | #??# ?? # ####?### " "" ###[ # ##### | | ?#?#???? # #??###?# ?" " ### | | ???? ? ??# #?????##???" @" " #?# / | | ?????? ??# # ? ##? "" " ### = [ | | ?#?#? ??# +??? ?## " E "## | | ????? # #?? #?# """"" ### ! | | #?#?? ???# #?? ?#?# ?????? ### * ! "!! | | ???# ????# #????### ? ? BB### #= | | ?????????# # ? ?###??? BB#####" # | | "???? ? # ????#??# ? ? ######?#" # | | ??? ????? +?????????? ? ##?####" "## | | ????? ??## #????#?#?#?????? ???#####""""######### | | ???#???#??? #??##?#????? ??? ?#?### ######? | | ???#?????#? ?? ??#??#?? ? ??????## ### ### | | ?? ? ????#? ??? ?????#? ???????#### "" "##"""[ | | ?????? ??## ??? ????#?? ??? ##?#?# """ "# " | | ? ????????????? ????#??? ?????????# R" "" """! | | ???????#??? ? ??????#?????? #??### """ "" "##" | | ?????? ???#????????#???? ????#?#??# "" "" "# " | | ?#???????# ??? ???#???#++++#####?# "" "##" | | ????# ???????#??#???#### ?##???# " ## " | | ???#???????????????? #######+#############" | | ???????????????????? #?#?#####?#" | | ??????#??#?????????????# ############ | | ???????????????????????# # ### | | ???????????????????????# # | # | | ???????????????????????###### # * = # | +----------------------------------------------------+ Best States ------------- Heat Dissipation 186 Energy Generation 93 Energy Capacity 940 Matter Stores 300 Matter Capacity 300 Sight Range 16 Robot Scan Range 20 Terrain Scan Range 24 Terrain Scan Density 210 Cloak Strength 5 Armor Coverage 600 Phase Shifting 15 Evasion (%) 55 Targeting Accuracy 16 Core Analysis 10 Recoil Reduction 1 Defensive Hacking 14 Item Schematics ----------------- None Robot Schematics ------------------ None Fabricated ------------ Adv. Signal Interpreter | x2 | -7/Factory Alien Tech Used ----------------- Phase Redirector Integrity Redistributor Core Reset Matrix Integrated Singularity Reactor Integrated Dissipator Subatomic Replicator Transdimensional Reconstructor Matter Drive Terrabomb Achievements -------------- Home At Last? Challenges ------------ None Game ------ Seed CoolantCoordinationLoader Manual? 0 Play Time 08:17:52 Cumulative 224.1 hours Start 2020.12.25 @ 11:10:58 End 2020.12.27 @ 15:49:51 Sessions 13 Manual Loads 0 Difficulty Rogue Special Mode None Game No. 66 Rogue 43 Adventurer 23 Explorer 0 Win Type 2 Total 9 Types 7/0/1/1/0/0/0/0/0 Lore% 88 Gallery% 86 Achievement% 69 Wizard Run 0 Options --------- ASCII 0 Keyboard 0 Movement Mouse Keybinds 0 Fullscreen 1 Font 18/SmallcapsGlow Map View 76x50 Tactical HUD 1 Map Filters NONE Filters NONE Steam 1 RUN: 5ccd5ac0-cfd1-4838-bda5-4a34f78c1bd1